fUSD/lending_fUSD_20240420
["ID","MTS","AMOUNT","RATE_DAILY","PERIOD"]
[323011638,1713587447383,-500.0,0.00015342,2]
[323011639,1713587447392,-500.0,0.00015342,2]
[323011640,1713587447401,-700.18,0.00015342,2]
[323011641,1713587447411,-572.4,0.00015342,2]
[323011642,1713587447420,-500.0,0.00015342,2]
[323011643,1713587447429,-364.39592169,0.00015342,2]
[323011644,1713587447438,-412.09763732,0.00015342,2]
[323011645,1713587447447,-500.0,0.00015342,2]
[323011646,1713587447456,-500.0,0.00015342,2]
[323011647,1713587447465,-500.0,0.00015342,2]
[323011648,1713587447475,-500.0,0.00015342,2]
[323011649,1713587447484,-500.0,0.00015342,2]
[323011650,1713587447493,-500.0,0.00015342,2]
[323011651,1713587447502,-500.0,0.00015342,2]
[323011652,1713587447514,-500.0,0.00015342,2]
[323011653,1713587447530,-500.0,0.00015342,2]
[323011654,1713587447539,-500.0,0.00015342,2]
[323011655,1713587447548,-500.0,0.00015342,2]
[323011656,1713587447557,-500.0,0.00015342,2]
[323011657,1713587447568,-583.4,0.00015342,2]
[323011658,1713587447578,-500.0,0.00015342,2]
[323011659,1713587447587,-500.0,0.00015342,2]
[323011660,1713587447596,-802.86,0.00015342,2]
[323011661,1713587447605,-500.0,0.00015342,2]
[323011662,1713587447613,-500.0,0.00015342,2]
[323011663,1713587447622,-507.97,0.00015342,2]
[323011664,1713587447631,-475.19564073,0.00015342,2]
[323011665,1713587447640,-500.0,0.00015342,2]
[323011666,1713587447649,-567.98,0.00015342,2]
[323011667,1713587447658,-500.0,0.00015342,2]
[323011668,1713587447667,-701.1,0.00015342,2]
[323011669,1713587447676,-638.74115379,0.00015342,2]
[323011670,1713587447685,-500.0,0.00015342,2]
[323011671,1713587447694,-500.0,0.00015342,2]
[323011672,1713587447704,-500.0,0.00015342,2]
[323011673,1713587447713,-500.0,0.00015342,2]
[323011674,1713587447721,-500.0,0.00015342,2]
[323011675,1713587447731,-500.0,0.00015342,2]
[323011676,1713587447740,-500.0,0.00015342,2]
[323011677,1713587447750,-655.6,0.00015342,2]
[323011678,1713587447759,-500.0,0.00015342,2]
[323011679,1713587447771,-500.0,0.00015342,2]
[323011680,1713587447780,-500.0,0.00015342,2]
[323011681,1713587447789,-500.0,0.00015342,2]
[323011682,1713587447798,-500.0,0.00015342,2]
[323011683,1713587447807,-500.0,0.00015342,2]
[323011684,1713587447817,-500.0,0.00015342,2]
[323011685,1713587447826,-548.54,0.00015342,2]
[323011686,1713587447835,-500.0,0.00015342,2]
[323011687,1713587447844,-516.97,0.00015342,2]
[323011688,1713587447853,-500.0,0.00015342,2]
[323011689,1713587447862,-782.76,0.00015342,2]
[323011690,1713587447871,-507.4,0.00015342,2]
[323011691,1713587447880,-500.0,0.00015342,2]
[323011692,1713587447889,-500.0,0.00015342,2]
[323011693,1713587447898,-500.0,0.00015342,2]
[323011694,1713587447907,-500.0,0.00015342,2]
[323011695,1713587447917,-500.0,0.00015342,2]
[323011696,1713587447926,-293.08659036,0.00015342,2]
[323011697,1713587447935,-500.0,0.00015342,2]
[323011698,1713587447945,-500.0,0.00015342,2]
[323011699,1713587447954,-500.0,0.00015342,2]
[323011700,1713587447962,-500.0,0.00015342,2]
[323011701,1713587447972,-500.0,0.00015342,2]
[323011702,1713587447980,-500.0,0.00015342,2]
[323011703,1713587447989,-554.49,0.00015342,2]
[323011704,1713587447998,-500.0,0.00015342,2]
[323011705,1713587448008,-601.34,0.00015342,2]
[323011706,1713587448017,-500.0,0.00015342,2]
[323011707,1713587448027,-500.0,0.00015342,2]
[323011708,1713587448036,-500.0,0.00015342,2]
[323011709,1713587448045,-500.0,0.00015342,2]
[323011710,1713587448054,-150.0,0.00015342,2]
[323011711,1713587448065,-500.0,0.00015342,2]
[323011712,1713587448074,-500.0,0.00015342,2]
[323011713,1713587448084,-500.0,0.00015342,2]
[323011714,1713587448093,-500.0,0.00015342,2]
[323011715,1713587448102,-500.0,0.00015342,2]
[323011716,1713587448111,-500.0,0.00015342,2]
[323011717,1713587448120,-500.0,0.00015342,2]
[323011718,1713587448129,-500.0,0.00015342,2]
[323011719,1713587448139,-500.0,0.00015342,2]
[323011720,1713587448149,-500.0,0.00015342,2]
[323011721,1713587448159,-500.0,0.00015342,2]
[323011722,1713587448169,-500.0,0.00015342,2]
[323011723,1713587448179,-686.06,0.00015342,2]
[323011724,1713587448188,-500.0,0.00015342,2]
[323011725,1713587448198,-546.22,0.00015342,2]
[323011726,1713587448207,-500.0,0.00015342,2]
[323011727,1713587448216,-500.0,0.00015342,2]
[323011728,1713587448225,-500.0,0.00015342,2]
[323011729,1713587448235,-500.0,0.00015342,2]
[323011730,1713587448245,-500.0,0.00015342,2]
[323011731,1713587448255,-538.81,0.00015342,2]
[323011732,1713587448264,-500.0,0.00015342,2]
[323011733,1713587448274,-500.0,0.00015342,2]
[323011734,1713587448284,-500.0,0.00015342,2]
[323011735,1713587448293,-374.55986881,0.00015342,2]
[323011736,1713587448304,-500.0,0.00015342,2]
[323011737,1713587448314,-663.89,0.00015342,2]
[323011738,1713587448324,-500.0,0.00015342,2]
[323011739,1713587448333,-500.0,0.00015342,2]
[323011740,1713587448342,-500.0,0.00015342,2]
[323011741,1713587448351,-500.0,0.00015342,2]
[323011742,1713587448360,-500.0,0.00015342,2]
[323011743,1713587448371,-500.0,0.00015342,2]
[323011744,1713587448379,-631.89,0.00015342,2]
[323011745,1713587448389,-500.0,0.00015342,2]
[323011746,1713587448398,-500.0,0.00015342,2]
[323011747,1713587448408,-497.10476252,0.00015342,2]
[323011748,1713587448417,-622.7,0.00015342,2]
[323011749,1713587448426,-585.77,0.00015342,2]
[323011750,1713587448436,-500.0,0.00015342,2]
[323011751,1713587448445,-506.79,0.00015342,2]
[323011752,1713587448454,-500.0,0.00015342,2]
[323011753,1713587448464,-500.0,0.00015342,2]
[323011754,1713587448473,-500.0,0.00015342,2]
[323011755,1713587448483,-985.96,0.00015342,2]
[323011756,1713587448492,-500.0,0.00015342,2]
[323011757,1713587448501,-503.55,0.00015342,2]
[323011758,1713587448511,-538.87,0.00015342,2]
[323011759,1713587448520,-1750.47,0.00015342,2]
[323011760,1713587448529,-500.0,0.00015342,2]
[323011761,1713587448539,-260.84049601,0.00015342,2]
[323011762,1713587448548,-1064.57,0.00015342,2]
[323011763,1713587448557,-500.0,0.00015342,2]
[323011764,1713587448570,-500.0,0.00015342,2]
[323011765,1713587448579,-500.0,0.00015342,2]
[323011766,1713587448589,-500.0,0.00015342,2]
[323011767,1713587448597,-500.0,0.00015342,2]
[323011768,1713587448607,-500.0,0.00015342,2]
[323011769,1713587448616,-1011.64,0.00015342,2]
[323011770,1713587448625,-500.0,0.00015342,2]
[323011771,1713587448634,-500.0,0.00015342,2]
[323011772,1713587448643,-500.0,0.00015342,2]
[323011773,1713587448652,-522.09,0.00015342,2]
[323011774,1713587448661,-500.0,0.00015342,2]
[323011775,1713587448670,-500.0,0.00015342,2]
[323011776,1713587448680,-500.0,0.00015342,2]
[323011777,1713587448689,-666.88,0.00015342,2]
[323011778,1713587448701,-969.29,0.00015342,2]
[323011779,1713587448709,-281.67137401,0.00015342,2]
[323011780,1713587448718,-807.39,0.00015342,2]
[323011781,1713587448727,-500.0,0.00015342,2]
[323011782,1713587448737,-500.0,0.00015342,2]
[323011783,1713587448746,-500.0,0.00015342,2]
[323011784,1713587448754,-500.0,0.00015342,2]
[323011785,1713587448763,-500.0,0.00015342,2]
[323011786,1713587448774,-532.15,0.00015342,2]
[323011787,1713587448784,-571.79,0.00015342,2]
[323011788,1713587448793,-500.0,0.00015342,2]
[323011789,1713587448802,-500.0,0.00015342,2]
[323011790,1713587448812,-517.43,0.00015342,2]
[323011791,1713587448821,-500.0,0.00015342,2]
[323011792,1713587448830,-822.16,0.00015342,2]
[323011793,1713587448839,-500.0,0.00015342,2]
[323011794,1713587448848,-500.0,0.00015342,2]
[323011795,1713587448858,-596.75,0.00015342,2]
[323011796,1713587448867,-893.28,0.00015342,2]
[323011797,1713587448876,-500.0,0.00015342,2]
[323011798,1713587448885,-500.0,0.00015342,2]
[323011799,1713587448894,-500.0,0.00015342,2]
[323011800,1713587448904,-500.0,0.00015342,2]
[323011801,1713587448913,-537.83996841,0.00015342,2]
[323011802,1713587448922,-748.83,0.00015342,2]
[323011803,1713587448930,-783.58,0.00015342,2]
[323011804,1713587448939,-500.0,0.00015342,2]
[323011805,1713587448948,-1011.59,0.00015342,2]
[323011806,1713587448957,-500.0,0.00015342,2]
[323011807,1713587448965,-500.0,0.00015342,2]
[323011808,1713587448974,-1622.03,0.00015342,2]
[323011809,1713587448983,-500.0,0.00015342,2]
[323011810,1713587448991,-412.43503966,0.00015342,2]
[323011811,1713587449000,-500.0,0.00015342,2]
[323011812,1713587449010,-652.66,0.00015342,2]
[323011813,1713587449019,-500.0,0.00015342,2]
[323011814,1713587449028,-623.28,0.00015342,2]
[323011815,1713587449038,-500.0,0.00015342,2]
[323011816,1713587449046,-500.0,0.00015342,2]
[323011817,1713587449055,-500.0,0.00015342,2]
[323011818,1713587449067,-500.0,0.00015342,2]
[323011819,1713587449077,-686.08,0.00015342,2]
[323011820,1713587449087,-800.99,0.00015342,2]
[323011821,1713587449096,-572.29,0.00015342,2]
[323011822,1713587449106,-592.33,0.00015342,2]
[323011823,1713587449116,-810.09,0.00015342,2]
[323011824,1713587449125,-500.0,0.00015342,2]
[323011825,1713587449135,-807.87,0.00015342,2]
[323011826,1713587449144,-500.0,0.00015342,2]
[323011827,1713587449153,-500.0,0.00015342,2]
[323011828,1713587449163,-854.14,0.00015342,2]
[323011829,1713587449172,-860.48,0.00015342,2]
[323011830,1713587449182,-500.0,0.00015342,2]
[323011831,1713587449191,-500.0,0.00015342,2]
[323011832,1713587449201,-675.47,0.00015342,2]
[323011833,1713587449210,-990.63,0.00015342,2]
[323011834,1713587449219,-500.0,0.00015342,2]
[323011835,1713587449228,-500.0,0.00015342,2]
[323011836,1713587449237,-1064.43,0.00015342,2]
[323011837,1713587449247,-500.0,0.00015342,2]
[323011838,1713587449256,-500.0,0.00015342,2]
[323011839,1713587449265,-547.25,0.00015342,2]
[323011840,1713587449275,-500.0,0.00015342,2]
[323011841,1713587449283,-500.0,0.00015342,2]
[323011842,1713587449293,-828.99,0.00015342,2]
[323011843,1713587449302,-500.0,0.00015342,2]
[323011844,1713587449311,-500.0,0.00015342,2]
[323011845,1713587449320,-500.0,0.00015342,2]
[323011846,1713587449330,-500.0,0.00015342,2]
[323011847,1713587449339,-500.0,0.00015342,2]
[323011848,1713587449347,-870.48,0.00015342,2]
[323011849,1713587449357,-500.0,0.00015342,2]
[323011850,1713587449366,-500.0,0.00015342,2]
[323011851,1713587449375,-649.0,0.00015342,2]
[323011852,1713587449384,-500.0,0.00015342,2]
[323011853,1713587449394,-824.72,0.00015342,2]
[323011854,1713587449403,-618.63,0.00015342,2]
[323011855,1713587449412,-576.73,0.00015342,2]
[323011856,1713587449421,-500.0,0.00015342,2]
[323011857,1713587449430,-1041.02,0.00015342,2]
[323011858,1713587449439,-500.0,0.00015342,2]
[323011859,1713587449448,-500.0,0.00015342,2]
[323011860,1713587449457,-723.13,0.00015342,2]
[323011861,1713587449466,-376.77983569,0.00015342,2]
[323011862,1713587449475,-500.0,0.00015342,2]
[323011863,1713587449484,-500.0,0.00015342,2]
[323011864,1713587449493,-1205.92,0.00015342,2]
[323011865,1713587449502,-500.0,0.00015342,2]
[323011866,1713587449511,-500.0,0.00015342,2]
[323011867,1713587449520,-500.0,0.00015342,2]
[323011868,1713587449529,-548.22,0.00015342,2]
[323011869,1713587449538,-574.04,0.00015342,2]
[323011870,1713587449548,-500.0,0.00015342,2]
[323011871,1713587449557,-500.0,0.00015342,2]
[323011872,1713587449567,-366.31109413,0.00015342,2]
[323011873,1713587449577,-500.0,0.00015342,2]
[323011874,1713587449586,-500.0,0.00015342,2]
[323011875,1713587449594,-664.58,0.00015342,2]
[323011876,1713587449603,-500.0,0.00015342,2]
[323011877,1713587449613,-500.0,0.00015342,2]
[323011878,1713587449621,-500.0,0.00015342,2]
[323011879,1713587449630,-1345.57,0.00015342,2]
[323011880,1713587449640,-1039.79,0.00015342,2]
[323011881,1713587449648,-894.43,0.00015342,2]
[323011882,1713587449657,-500.0,0.00015342,2]
[323011883,1713587449666,-500.0,0.00015342,2]
[323011884,1713587449675,-500.0,0.00015342,2]
[323011885,1713587449684,-787.37,0.00015342,2]
[323011886,1713587449696,-555.03,0.00015342,2]
[323011887,1713587449705,-809.17,0.00015342,2]
[323011888,1713587449714,-567.63,0.00015342,2]
[323011889,1713587449723,-1534.21,0.00015342,2]
[323011890,1713587449733,-552.08,0.00015342,2]
[323011891,1713587449742,-500.0,0.00015342,2]
[323011892,1713587449751,-500.0,0.00015342,2]
[323011893,1713587449760,-566.95,0.00015342,2]
[323011894,1713587449770,-501.19,0.00015342,2]
[323011895,1713587449779,-500.0,0.00015342,2]
[323011896,1713587449789,-500.0,0.00015342,2]
[323011897,1713587449799,-500.0,0.00015342,2]
[323011898,1713587449808,-946.7,0.00015342,2]
[323011899,1713587449820,-859.67,0.00015342,2]
[323011900,1713587449829,-641.55,0.00015342,2]
[323011901,1713587449838,-500.0,0.00015342,2]
[323011902,1713587449847,-500.0,0.00015342,2]
[323011903,1713587449856,-777.48,0.00015342,2]
[323011904,1713587449865,-588.8556026,0.00015342,2]
[323011905,1713587449875,-1694.84,0.00015342,2]
[323011906,1713587449884,-500.0,0.00015342,2]
[323011907,1713587449893,-500.0,0.00015342,2]
[323011908,1713587449903,-877.49,0.00015342,2]
[323011909,1713587449912,-1722.25,0.00015342,2]
[323011910,1713587449921,-1458.09,0.00015342,2]
[323011911,1713587449931,-500.0,0.00015342,2]
[323011912,1713587449940,-535.72,0.00015342,2]
[323011913,1713587449949,-563.25,0.00015342,2]
[323011914,1713587449958,-500.0,0.00015342,2]
[323011915,1713587449967,-500.0,0.00015342,2]
[323011916,1713587449976,-775.65,0.00015342,2]
[323011917,1713587449985,-500.0,0.00015342,2]
[323011918,1713587449995,-500.0,0.00015342,2]
[323011919,1713587450005,-1630.75,0.00015342,2]
[323011920,1713587450014,-1160.4,0.00015342,2]
[323011921,1713587450022,-500.0,0.00015342,2]
[323011922,1713587450031,-500.0,0.00015342,2]
[323011923,1713587450041,-500.0,0.00015342,2]
[323011924,1713587450050,-616.28,0.00015342,2]
[323011925,1713587450060,-976.11,0.00015342,2]
[323011926,1713587450075,-724.36,0.00015342,2]
[323011927,1713587450085,-500.0,0.00015342,2]
[323011928,1713587450095,-500.0,0.00015342,2]
[323011929,1713587450104,-500.0,0.00015342,2]
[323011930,1713587450114,-339.32449937,0.00015342,2]
[323011931,1713587450124,-1364.24,0.00015342,2]
[323011932,1713587450133,-500.0,0.00015342,2]
[323011933,1713587450143,-500.0,0.00015342,2]
[323011934,1713587450152,-803.19,0.00015342,2]
[323011935,1713587450162,-711.41,0.00015342,2]
[323011936,1713587450171,-640.71,0.00015342,2]
[323011937,1713587450181,-500.0,0.00015342,2]
[323011938,1713587450190,-500.0,0.00015342,2]
[323011939,1713587450199,-440.17,0.00015342,2]
[323011940,1713587450208,-500.0,0.00015342,2]
[323011941,1713587450218,-1871.08,0.00015342,2]
[323011942,1713587450227,-500.0,0.00015342,2]
[323011943,1713587450236,-500.0,0.00015342,2]
[323011944,1713587450246,-1254.84,0.00015342,2]
[323011945,1713587450255,-500.0,0.00015342,2]
[323011946,1713587450264,-500.0,0.00015342,2]
[323011947,1713587450273,-1025.78,0.00015342,2]
[323011948,1713587450283,-1119.42,0.00015342,2]
[323011949,1713587450292,-500.0,0.00015342,2]
[323011950,1713587450302,-1005.32,0.00015342,2]
[323011951,1713587450311,-500.0,0.00015342,2]
[323011952,1713587450327,-577.01,0.00015342,2]
[323011953,1713587450337,-500.0,0.00015342,2]
[323011954,1713587450345,-500.0,0.00015342,2]
[323011955,1713587450354,-500.0,0.00015342,2]
[323011956,1713587450363,-500.0,0.00015342,2]
[323011957,1713587450373,-1602.67,0.00015342,2]
[323011958,1713587450382,-500.0,0.00015342,2]
[323011959,1713587450391,-692.35,0.00015342,2]
[323011960,1713587450400,-517.45612616,0.00015342,2]
[323011961,1713587450410,-732.75,0.00015342,2]
[323011962,1713587450419,-500.0,0.00015342,2]
[323011963,1713587450429,-500.0,0.00015342,2]
[323011964,1713587450438,-500.0,0.00015342,2]
[323011965,1713587450447,-1577.61,0.00015342,2]
[323011966,1713587450457,-500.0,0.00015342,2]
[323011967,1713587450466,-1155.86,0.00015342,2]
[323011968,1713587450475,-500.0,0.00015342,2]
[323011969,1713587450484,-500.0,0.00015342,2]
[323011970,1713587450493,-500.0,0.00015342,2]
[323011971,1713587450503,-150.0,0.00015342,2]
[323011972,1713587450512,-500.0,0.00015342,2]
[323011973,1713587450521,-1162.13,0.00015342,2]
[323011974,1713587450530,-500.0,0.00015342,2]
[323011975,1713587450539,-1473.01,0.00015342,2]
[323011976,1713587450548,-814.94,0.00015342,2]
[323011977,1713587450559,-1551.09,0.00015342,2]
[323011978,1713587450571,-500.4,0.00015342,2]
[323011979,1713587450581,-500.0,0.00015342,2]
[323011980,1713587450590,-500.0,0.00015342,2]
[323011981,1713587450600,-756.98,0.00015342,2]
[323011982,1713587450609,-500.0,0.00015342,2]
[323011983,1713587450618,-575.79,0.00015342,2]
[323011984,1713587450628,-1497.23,0.00015342,2]
[323011985,1713587450637,-500.0,0.00015342,2]
[323011986,1713587450647,-2663.45,0.00015342,2]
[323011987,1713587450656,-500.0,0.00015342,2]
[323011988,1713587450666,-609.23,0.00015342,2]
[323011989,1713587450675,-500.0,0.00015342,2]
[323011990,1713587450685,-500.0,0.00015342,2]
[323011991,1713587450697,-1500.19,0.00015342,2]
[323011992,1713587450707,-829.51,0.00015342,2]
[323011993,1713587450830,-665.51,0.00015342,2]
[323011994,1713587450899,-717.99905363,0.00015342,2]
[323011995,1713587450961,-447.57094637,0.00015342,2]
[323011996,1713587450971,-500.0,0.00015342,2]
[323011997,1713587450980,-364.15369464,0.00015342,2]
[323011998,1713587452081,-500.0,0.00015068,2]
[323011999,1713587452091,-135.84630536,0.00015342,2]
[323012000,1713587452101,-575.62,0.00015342,2]
[323012001,1713587452110,-500.0,0.00015342,2]
[323012002,1713587452119,-1016.09,0.00015342,2]
[323012003,1713587452129,-1343.8,0.00015342,2]
[323012004,1713587452139,-500.0,0.00015342,2]
[323012005,1713587452149,-1040.09,0.00015342,2]
[323012006,1713587452158,-500.0,0.00015342,2]
[323012007,1713587452168,-240.12091773,0.00015342,2]
[323012008,1713587452178,-604.21,0.00015342,2]
[323012009,1713587452188,-2737.71,0.00015342,2]
[323012010,1713587452198,-807.02,0.00015342,2]
[323012011,1713587452207,-500.0,0.00015342,2]
[323012012,1713587452217,-715.6,0.00015342,2]
[323012013,1713587452226,-1278.86,0.00015342,2]
[323012014,1713587452235,-500.0,0.00015342,2]
[323012015,1713587452244,-24.9580646,0.00015342,2]
[323012016,1713587452329,-763.2719354,0.00015342,2]
[323012017,1713587452338,-500.0,0.00015342,2]
[323012018,1713587452347,-650.41,0.00015342,2]
[323012019,1713587452357,-500.0,0.00015342,2]
[323012020,1713587452367,-1588.32,0.00015342,2]
[323012021,1713587452376,-1524.76,0.00015342,2]
[323012022,1713587452386,-500.0,0.00015342,2]
[323012023,1713587452395,-500.0,0.00015342,2]
[323012024,1713587452405,-500.0,0.00015342,2]
[323012025,1713587452414,-500.0,0.00015342,2]
[323012026,1713587452423,-1955.88,0.00015342,2]
[323012027,1713587452433,-652.8,0.00015342,2]
[323012028,1713587452442,-500.0,0.00015342,2]
[323012029,1713587452452,-500.0,0.00015342,2]
[323012030,1713587452461,-1989.68,0.00015342,2]
[323012031,1713587452471,-500.0,0.00015342,2]
[323012032,1713587452481,-542.86,0.00015342,2]
[323012033,1713587452490,-500.0,0.00015342,2]
[323012034,1713587452499,-739.89,0.00015342,2]
[323012035,1713587452509,-500.0,0.00015342,2]
[323012036,1713587452519,-1432.16,0.00015342,2]
[323012037,1713587452528,-1193.79,0.00015342,2]
[323012038,1713587452537,-500.0,0.00015342,2]
[323012039,1713587452546,-5908.29,0.00015342,2]
[323012040,1713587452556,-500.0,0.00015342,2]
[323012041,1713587452565,-843.18,0.00015342,2]
[323012042,1713587452575,-500.0,0.00015342,2]
[323012043,1713587452584,-500.0,0.00015342,2]
[323012044,1713587452596,-1155.5,0.00015342,2]
[323012045,1713587452608,-617.96,0.00015342,2]
[323012046,1713587452618,-22613.68,0.00015342,2]
[323012047,1713587452627,-500.0,0.00015342,2]
[323012048,1713587452637,-1198.44,0.00015342,2]
[323012049,1713587452646,-500.0,0.00015342,2]
[323012050,1713587452657,-500.0,0.00015342,2]
[323012051,1713587452667,-500.0,0.00015342,2]
[323012052,1713587452676,-500.0,0.00015342,2]
[323012053,1713587452686,-500.0,0.00015342,2]
[323012054,1713587452699,-500.0,0.00015342,2]
[323012055,1713587452709,-974.73,0.00015342,2]
[323012056,1713587452718,-500.0,0.00015342,2]
[323012057,1713587452727,-999.7,0.00015342,2]
[323012058,1713587452737,-2616.62,0.00015342,2]
[323012059,1713587452747,-1829.49,0.00015342,2]
[323012060,1713587452756,-502.9,0.00015342,2]
[323012061,1713587452766,-1137.71,0.00015342,2]
[323012062,1713587452779,-500.0,0.00015342,2]
[323012063,1713587452796,-714.41,0.00015342,2]
[323012064,1713587452807,-577.96,0.00015342,2]
[323012065,1713587452818,-500.0,0.00015342,2]
[323012066,1713587452827,-543.95,0.00015342,2]
[323012067,1713587453142,-500.0,0.00015342,2]
[323012068,1713587453170,-982.33,0.00015342,2]
[323012069,1713587453180,-24911.8,0.00015342,2]
[323012070,1713587453189,-500.0,0.00015342,2]
[323012071,1713587453199,-595.82,0.00015342,2]
[323012072,1713587453208,-500.0,0.00015342,2]
[323012073,1713587453218,-16793.07,0.00015342,2]
[323012074,1713587453228,-2010.39,0.00015342,2]
[323012075,1713587453237,-500.0,0.00015342,2]
[323012076,1713587453247,-2065.14,0.00015342,2]
[323012077,1713587453256,-500.0,0.00015342,2]
[323012078,1713587453266,-500.0,0.00015342,2]
[323012079,1713587453275,-999.99,0.00015342,2]
[323012080,1713587453285,-2229.51,0.00015342,2]
[323012081,1713587453294,-994.7,0.00015342,2]
[323012082,1713587453303,-500.0,0.00015342,2]
[323012083,1713587453312,-15854.94,0.00015342,2]
[323012084,1713587453322,-726.33,0.00015342,2]
[323012085,1713587453331,-1193.85,0.00015342,2]
[323012086,1713587453340,-583.62,0.00015342,2]
[323012087,1713587453349,-2925.69,0.00015342,2]
[323012088,1713587453359,-755.21,0.00015342,2]
[323012089,1713587453368,-500.0,0.00015342,2]
[323012090,1713587453378,-500.0,0.00015342,2]
[323012091,1713587453387,-500.0,0.00015342,2]
[323012092,1713587453397,-1543.63,0.00015342,2]
[323012093,1713587453406,-1284.28,0.00015342,2]
[323012094,1713587453415,-1858.72,0.00015342,2]
[323012095,1713587453424,-653.75,0.00015342,2]
[323012096,1713587453434,-1989.87,0.00015342,2]
[323012097,1713587453443,-1412.09,0.00015342,2]
[323012098,1713587453452,-2569.0,0.00015342,2]
[323012099,1713587453461,-695.06,0.00015342,2]
[323012100,1713587453471,-500.0,0.00015342,2]
[323012101,1713587453480,-700.92,0.00015342,2]
[323012102,1713587453489,-1111.37,0.00015342,2]
[323012103,1713587453498,-500.0,0.00015342,2]
[323012104,1713587453507,-500.0,0.00015342,2]
[323012105,1713587453516,-2625.86,0.00015342,2]
[323012106,1713587453525,-900.99,0.00015342,2]
[323012107,1713587453534,-500.0,0.00015342,2]
[323012108,1713587453544,-1168.36,0.00015342,2]
[323012109,1713587453553,-500.0,0.00015342,2]
[323012110,1713587453563,-5221.59,0.00015342,2]
[323012111,1713587453573,-5228.35,0.00015342,2]
[323012112,1713587453582,-2437.99,0.00015342,2]
[323012113,1713587453591,-558.74,0.00015342,2]
[323012114,1713587453601,-500.0,0.00015342,2]
[323012115,1713587453610,-1947.61,0.00015342,2]
[323012116,1713587453619,-500.0,0.00015342,2]
[323012117,1713587453628,-500.0,0.00015342,2]
[323012118,1713587453638,-1837.38,0.00015342,2]
[323012119,1713587453647,-1403.98,0.00015342,2]
[323012120,1713587453657,-500.0,0.00015342,2]
[323012121,1713587453667,-500.0,0.00015342,2]
[323012122,1713587453676,-500.0,0.00015342,2]
[323012123,1713587453686,-607.03,0.00015342,2]
[323012124,1713587453700,-500.0,0.00015342,2]
[323012125,1713587453709,-20635.11,0.00015342,2]
[323012126,1713587453718,-500.0,0.00015342,2]
[323012127,1713587453727,-500.0,0.00015342,2]
[323012128,1713587453737,-500.0,0.00015342,2]
[323012129,1713587453747,-1014.84,0.00015342,2]
[323012130,1713587453756,-3082.15,0.00015342,2]
[323012131,1713587453766,-500.0,0.00015342,2]
[323012132,1713587453777,-744.81,0.00015342,2]
[323012133,1713587453787,-500.0,0.00015342,2]
[323012134,1713587453796,-500.0,0.00015342,2]
[323012135,1713587453806,-618.48,0.00015342,2]
[323012136,1713587453816,-1343.26,0.00015342,2]
[323012137,1713587453825,-523.62,0.00015342,2]